fUSD/lending_fUSD_20240930
["ID","MTS","AMOUNT","RATE_DAILY","PERIOD"]
[339585484,1727716231578,-250.0,0.00011427,2]
[339585485,1727716231588,-5469.87464543,0.00011427,2]
[339585486,1727716231599,-5823.00804009,0.00011427,2]
[339585487,1727716231611,-300.3,0.00011427,2]
[339585488,1727716231623,-479.84771151,0.00011427,2]
[339585489,1727716231638,-361.36554768,0.00011427,2]
[339585490,1727716231649,-851.45896926,0.00011427,2]
[339585491,1727716231664,-520.41993916,0.00011427,2]
[339585492,1727716231676,-7204.4,0.00011427,2]
[339585493,1727716231708,-704.70953894,0.00011427,2]
[339585494,1727716231719,-967.0646399,0.00011427,2]
[339585495,1727716231731,-1326.47409564,0.00011427,2]
[339585496,1727716231743,-1500.3044245,0.00011427,2]
[339585497,1727716231754,-300.0,0.00011427,2]
[339585498,1727716231769,-4064.67310528,0.00011427,2]
[339585499,1727716231780,-4869.87206032,0.00011427,2]
[339585500,1727716231791,-11830.17225293,0.00011427,2]
[339585501,1727716231800,-250.0,0.00011431,2]
[339585502,1727716231810,-182.79,0.00011446,2]
[339585503,1727716231820,-1000.0,0.00011472,2]
[339585504,1727716231829,-1841.16,0.00011492,2]
[339585506,1727716231839,-152.97,0.00011497,2]
[339585508,1727716231848,-200.0,0.00011504,2]
[339585510,1727716231858,-499.99,0.00011504,2]
[339585512,1727716231870,-219.6,0.00011504,2]
[339585514,1727716231880,-200.96,0.00011508,2]
[339585516,1727716231889,-1500.0,0.00011513,2]
[339585518,1727716231898,-1266.25,0.00011522,2]
[339585520,1727716231908,-1372.71093522,0.00011522,2]
[339585522,1727716231917,-150.0,0.00011589,2]
[339585525,1727716231927,-150.0,0.00011589,2]
[339585527,1727716231936,-150.0,0.00011589,2]
[339585529,1727716231945,-150.0,0.00011589,2]
[339585530,1727716231954,-150.0,0.00011732,2]
[339585531,1727716231964,-150.0,0.00011875,2]
[339585532,1727716231973,-152.65,0.00011891,2]
[339585533,1727716231982,-150.0,0.00011899,2]
[339585534,1727716231991,-500.0,0.000119,2]
[339585535,1727716232000,-500.0,0.000119,2]
[339585536,1727716232009,-500.0,0.000119,2]
[339585537,1727716232019,-500.0,0.000119,2]
[339585538,1727716232028,-500.0,0.000119,2]
[339585539,1727716232037,-500.0,0.000119,2]
[339585540,1727716232046,-500.0,0.000119,2]
[339585541,1727716232055,-500.0,0.000119,2]
[339585542,1727716232064,-500.0,0.000119,2]
[339585543,1727716232074,-500.0,0.000119,2]
[339585544,1727716232083,-500.0,0.000119,2]
[339585545,1727716232092,-162.24,0.000119,2]
[339585546,1727716232101,-500.0,0.000119,2]
[339585547,1727716232111,-500.0,0.000119,2]
[339585548,1727716232121,-500.0,0.000119,2]
[339585549,1727716232130,-500.0,0.000119,2]
[339585550,1727716232140,-500.0,0.000119,2]
[339585551,1727716232149,-500.0,0.000119,2]
[339585552,1727716232159,-500.0,0.000119,2]
[339585553,1727716232168,-500.0,0.000119,2]
[339585554,1727716232178,-500.0,0.000119,2]
[339585555,1727716232187,-500.0,0.000119,2]
[339585556,1727716232196,-500.0,0.000119,2]
[339585557,1727716232206,-500.0,0.000119,2]
[339585558,1727716232214,-500.0,0.000119,2]
[339585559,1727716232224,-500.0,0.000119,2]
[339585560,1727716232233,-343.82,0.000119,2]
[339585561,1727716232242,-1000.0,0.000119,4]
[339585562,1727716232251,-420.59,0.00012,2]
[339585563,1727716232262,-2000.0,0.00012,4]
[339585564,1727716232271,-150.0,0.00012018,2]
[339585565,1727716232281,-150.0,0.00012018,2]
[339585566,1727716232290,-150.0,0.00012018,2]
[339585567,1727716232299,-229.144845,0.00012058,2]
[339585568,1727716232308,-300.0,0.000121,2]
[339585569,1727716232317,-197.61,0.000121,2]
[339585570,1727716232327,-36.71158488,0.000121,2]
[339585571,1727716232339,-386.45841512,0.000121,2]
[339585572,1727716232348,-423.17,0.000121,2]
[339585573,1727716232357,-423.17,0.000121,2]
[339585574,1727716232368,-2687.72843542,0.000121,4]
[339585581,1727716237497,-312.27156458,0.000121,4]
[339585583,1727716237509,-150.0,0.00012161,2]
[339585585,1727716237518,-12.44545542,0.0001219,2]
[339585586,1727716237530,-487.55454458,0.0001219,2]
[339585587,1727716237540,-493.199,0.0001219,2]
[339585588,1727716237550,-21.59535222,0.0001219,2]
[339585589,1727716237561,-1067.00314778,0.0001219,2]
[339585590,1727716237571,-2949.10631222,0.000122,4]
[339585591,1727716237582,-1050.89368778,0.000122,4]
[339585592,1727716237593,-229.144845,0.00012209,2]
[339585593,1727716237603,-150.0,0.00012218,2]
[339585594,1727716237612,-5000.0,0.000123,4]
[339585595,1727716237622,-150.0,0.00012304,2]
[339585596,1727716237632,-355.15,0.00012345,2]
[339585597,1727716237641,-229.144845,0.0001236,2]
[339585598,1727716237650,-1000.0,0.000124,4]
[339585599,1727716237659,-5800.0,0.00012434,2]
[339585600,1727716237668,-5800.0,0.00012442,2]
[339585601,1727716237678,-167.63,0.00012445,2]
[339585602,1727716237687,-150.0,0.00012447,2]
[339585603,1727716237695,-150.0,0.00012447,2]
[339585604,1727716237704,-150.0,0.00012447,2]
[339585605,1727716237714,-5800.0,0.00012451,2]
[339585606,1727716237723,-590.117,0.00012451,2]
[339585607,1727716237732,-172.448,0.00012451,2]
[339585608,1727716237741,-5800.0,0.00012459,2]
[339585609,1727716237751,-500.0,0.00012464,2]
[339585610,1727716237759,-5800.0,0.00012468,2]
[339585611,1727716237769,-500.0,0.00012473,2]
[339585612,1727716237778,-5800.0,0.00012476,2]
[339585613,1727716237788,-500.0,0.00012481,2]
[339585614,1727716237797,-1523.40981167,0.00012485,2]
[339585615,1727716237816,-289.394105,0.00012485,2]
[339585616,1727716237827,-3100.0000164,0.00012485,2]
[339585617,1727716237838,-887.19606693,0.00012485,2]
[339585618,1727716237847,-500.0,0.0001249,2]
[339585619,1727716237856,-5800.0,0.00012493,2]
[339585620,1727716237866,-896.221836,0.00012493,2]
[339585621,1727716237875,-896.221836,0.00012493,2]
[339585622,1727716237884,-896.221836,0.00012493,2]
[339585623,1727716237893,-896.221836,0.00012493,2]
[339585624,1727716237902,-357.39439966,0.00012493,2]
[339585625,1727716237911,-5800.0,0.00012497,2]
[339585626,1727716237920,-500.0,0.00012499,2]
[339585627,1727716237929,-150.0,0.000125,2]
[339585628,1727716237938,-1014.78,0.000125,2]
[339585629,1727716237948,-600.0,0.000125,2]
[339585631,1727716237957,-1000.0,0.000125,4]
[339585632,1727716237966,-229.144845,0.00012511,2]
[339585633,1727716237975,-289.394,0.00012518,2]
[339585634,1727716237984,-1400.06509752,0.00012524,2]
[339585638,1727716239689,-650.10809178,0.00012524,2]
[339585639,1727716239799,-728.89371897,0.00012524,2]
[339585694,1727716242517,-250.0,0.00011636,2]
[339585695,1727716242527,-131.65068064,0.00012524,2]
[339585696,1727716242536,-938.89309721,0.00012555,2]
[339585697,1727716242628,-1971.82449167,0.00012555,2]
[339585698,1727716242638,-2910.71758888,0.00012585,2]
[339585699,1727716242647,-150.0,0.00012591,2]
[339585700,1727716242656,-1000.0,0.000126,4]
[339585701,1727716242666,-150.0,0.00012606,2]
[339585702,1727716242675,-1500.0,0.00012606,2]
[339585703,1727716242685,-593.93384882,0.00012616,2]
[339585704,1727716242696,-2316.78374006,0.00012616,2]
[339585705,1727716242705,-150.0,0.00012624,2]
[339585706,1727716242715,-150.0,0.00012628,2]
[339585707,1727716242724,-1500.0,0.00012631,2]
[339585708,1727716242733,-1500.0,0.00012644,2]
[339585709,1727716242742,-2910.71758888,0.00012647,2]
[339585710,1727716242752,-1500.0,0.00012655,2]
[339585711,1727716242762,-229.144845,0.00012661,2]
[339585712,1727716242771,-2910.71758888,0.00012677,2]
[339585713,1727716242780,-150.0,0.00012679,2]
[339585714,1727716242790,-154.00400739,0.00012686,2]
[339585715,1727716242799,-150.0,0.00012697,2]
[339585716,1727716242808,-801.5619,0.000127,2]
[339585717,1727716242818,-1000.0,0.000127,4]
[339585718,1727716242827,-227.0,0.000127,2]
[339585719,1727716242836,-162.54018243,0.00012701,2]
[339585720,1727716242846,-150.0,0.00012706,2]
[339585721,1727716242855,-2910.71758888,0.00012708,2]
[339585723,1727716242864,-150.0,0.00012718,2]
[339585724,1727716242877,-156.64591238,0.00012719,2]
[339585725,1727716242886,-150.0,0.00012729,2]
[339585726,1727716242895,-150.0,0.00012734,2]
[339585727,1727716242905,-2910.71758888,0.00012739,2]
[339585728,1727716242914,-1500.0,0.00012745,2]
[339585729,1727716242924,-150.0,0.00012754,2]
[339585731,1727716242933,-150.0,0.0001276,2]
[339585732,1727716242942,-1650.1967,0.00012761,2]
[339585733,1727716242951,-527.03740899,0.00012762,2]
[339585734,1727716242960,-150.0,0.00012767,2]
[339585735,1727716242969,-150.0,0.00012767,2]
[339585737,1727716242978,-2910.71758888,0.00012769,2]
[339585739,1727716242987,-150.0,0.00012772,2]
[339585740,1727716242997,-150.0,0.00012774,2]
[339585741,1727716243006,-150.0,0.00012778,2]
[339585742,1727716243016,-360.00423274,0.00012792,2]
[339585743,1727716243025,-500.0,0.00012796,2]
[339585744,1727716243034,-500.0,0.00012796,2]
[339585745,1727716243043,-200.0,0.00012796,2]
[339585746,1727716243054,-500.0,0.00012797,2]
[339585747,1727716243063,-500.0,0.00012797,2]
[339585748,1727716243073,-500.0,0.00012797,2]
[339585749,1727716243083,-500.0,0.00012797,2]
[339585750,1727716243093,-200.0,0.00012797,2]
[339585751,1727716243102,-2056.68655181,0.00012797,2]
[339585752,1727716243111,-169.1142383,0.00012799,2]
[339585753,1727716243123,-169.1142383,0.00012799,2]
[339585754,1727716243132,-169.1142383,0.00012799,2]
[339585755,1727716243141,-169.1142383,0.000128,2]
[339585756,1727716243151,-169.1142383,0.000128,2]
[339585757,1727716243161,-169.1142383,0.000128,2]
[339585758,1727716243171,-5470.67221248,0.000128,2]
[339585759,1727716243181,-41226.5891,0.000128,2]
[339585760,1727716243191,-8487.1344,0.000128,2]
[339585761,1727716243200,-7500.0,0.000128,2]
[339585762,1727716243209,-169.1142383,0.000128,2]
[339585763,1727716243219,-175.09543723,0.000128,2]
[339585764,1727716243229,-1120.0,0.000128,4]
[339585765,1727716243238,-3251.54369399,0.000128,2]
[339585766,1727716243248,-166.24824724,0.000128,2]
[339585767,1727716243258,-166.24824724,0.000128,2]
[339585768,1727716243267,-166.74,0.000128,2]
[339585769,1727716243277,-154.06,0.000128,2]
[339585770,1727716243287,-153.93865644,0.000128,2]
[339585771,1727716243297,-153.93865644,0.000128,2]
[339585772,1727716243306,-153.93865644,0.000128,2]
[339585773,1727716243316,-154.43,0.000128,2]
[339585774,1727716243325,-196.31961199,0.000128,2]
[339585775,1727716243334,-196.31961199,0.000128,2]
[339585776,1727716243343,-196.81,0.000128,2]
[339585777,1727716243352,-2910.71758888,0.000128,2]
[339585778,1727716243362,-200.74567328,0.000128,2]
[339585779,1727716243374,-150.0,0.00012804,2]
[339585780,1727716243384,-150.0,0.00012823,2]
[339585781,1727716243393,-150.0,0.00012846,2]
[339585782,1727716243402,-1500.0,0.00012847,2]
[339585783,1727716243412,-150.0,0.00012847,2]
[339585784,1727716243422,-151.2602227,0.0001285,2]
[339585785,1727716243432,-150.0,0.00012852,2]
[339585786,1727716243441,-1500.0,0.00012853,2]
[339585787,1727716243451,-258.38606012,0.00012855,2]
[339585788,1727716243462,-47627.59705991,0.00012861,2]
[339585789,1727716243476,-150.0,0.00012862,2]
[339585790,1727716243494,-1000.0,0.0001287,2]
[339585791,1727716243504,-500.0,0.0001287,2]
[339585792,1727716243515,-500.0,0.00012873,2]
[339585793,1727716243524,-150.0,0.00012877,2]
[339585794,1727716243534,-150.0,0.00012877,2]
[339585795,1727716243543,-150.0,0.00012877,2]
[339585796,1727716243554,-152.86,0.0001289,2]
[339585797,1727716243564,-199.15185173,0.0001289,2]
[339585798,1727716243574,-179.99,0.00012893,2]
[339585799,1727716243584,-32148.6,0.00012897,2]
[339585800,1727716243594,-714.3623036,0.00012897,2]
[339585801,1727716243604,-150.01,0.00012899,2]
[339585802,1727716243614,-304.25797403,0.00012899,2]
[339585803,1727716243634,-500.0,0.00012899,2]
[339585804,1727716243643,-626.96064584,0.00012899,2]
[339585805,1727716243653,-500.0,0.00012899,2]
[339585806,1727716243663,-500.0,0.00012899,2]
[339585807,1727716243672,-643.1730722,0.00012899,2]
[339585808,1727716243681,-1813.12429764,0.000129,2]
[339585809,1727716243691,-114033.97519796,0.000129,2]
[339585810,1727716243798,-608.19755019,0.000129,2]
[339585811,1727716243809,-11578.02151287,0.000129,2]
[339585812,1727716243820,-1020.49863133,0.000129,2]
[339585813,1727716243831,-2896.0,0.000129,2]
[339585814,1727716245463,-1000.0,0.000127,2]
[339585815,1727716245472,-2097.9123,0.000129,2]
[339585816,1727716245484,-20823.768735,0.000129,2]
[339585817,1727716245524,-22677.27680596,0.000129,2]
[339585818,1727716245582,-1892.27211588,0.000129,2]
[339586426,1727716296538,156.37,9.409e-05,2]
[339586798,1727716852720,151.73,9.492e-05,2]
[339587305,1727717431693,-534.71993001,0.000109,2]
[339587306,1727717431703,-185.44,0.00010959,2]
[339587308,1727717431713,-500.0,0.00010973,2]
[339587310,1727717431723,-151.48,0.0001099,2]
[339587311,1727717431733,-171.48637452,0.0001099,2]
[339587312,1727717431743,-300.0,0.00010999,2]
[339587313,1727717431754,-150.0,0.00010999,2]
[339587314,1727717431763,-182.5747858,0.00010999,2]
[339587315,1727717431773,-2448.69210967,0.00011,2]
[339587316,1727717431786,-1033.7,0.00011,2]
[339587317,1727717431798,-397.56791311,0.00011,2]
[339587318,1727717431839,-165723.67573721,0.00011,2]
[339587319,1727717431878,-656.69375819,0.00011,2]
[339587320,1727717431891,-3702.08686573,0.00011,2]
[339587321,1727717431951,-642.3977412,0.00011,2]
[339587322,1727717431962,-5148.2028,0.00011,2]
[339587323,1727717431974,-6370.7,0.00011,2]
[339587333,1727717437779,-388.08,0.00011,2]
[339587334,1727717437898,-442.2982451,0.00011,2]
[339587335,1727717437962,-4007.39605,0.00011,2]
[339587391,1727717439734,-68938.51647669,0.00011,2]
[339587392,1727717439915,-290749.26232173,0.00011,2]
[339587393,1727717439947,-7900.0844769,0.00011,2]
[339587395,1727717440090,-1554.46261674,0.00011,2]
[339587397,1727717440101,-955.689011,0.00011,2]
[339587498,1727717442991,-7176.86336142,0.00011,2]
[339587499,1727717443003,-11710.66908678,0.00011,2]
[339587516,1727717445797,-1827.86874,0.00011,2]
[339587517,1727717445809,-27172.92460507,0.00011,2]
[339587518,1727717445916,-2195.89994358,0.00011,2]
[339587659,1727717673537,176.1,8.988e-05,2]
[339587967,1727718135167,1000.0,0.0001,120]
[339587978,1727718146754,1000.0,0.00012,120]
[339587981,1727718147686,1000.0,0.00012,120]
[339587984,1727718149456,1000.0,0.00012,120]
[339587985,1727718149937,1000.0,0.00012,120]
[339587987,1727718150566,1000.0,0.00012,120]
[339587989,1727718151211,1000.0,0.00012,120]
[339587990,1727718152346,1000.0,0.00012,120]
[339587996,1727718154922,1000.0,0.00012,120]
[339587997,1727718155679,1000.0,0.00012,120]
[339587998,1727718156292,1000.0,0.00012,120]
[339588001,1727718158896,1000.0,0.00012,120]
[339588002,1727718159375,1000.0,0.00012,120]
[339588016,1727718177020,377.02,0.00012,120]
[339588045,1727718234906,167.29,8.689e-05,2]
[339588287,1727718631952,-150.0,0.000105,2]
[339588288,1727718631962,-602.8607206,0.000105,2]
[339588289,1727718631973,-328.5,0.000105,2]
[339588290,1727718632016,-4807.60507663,0.000105,2]
[339588291,1727718632226,-2998.20515077,0.000105,2]
[339588292,1727718632237,-450.0,0.000105,2]
[339588293,1727718632248,-579.913739,0.000105,2]
[339588294,1727718632260,-267.95,0.000105,2]
[339588300,1727718638029,-460.04,0.000105,2]
[339588301,1727718638090,-32966.76603345,0.000105,2]
[339588302,1727718638103,-1201.07485359,0.000105,2]
[339588308,1727718639833,-4584.09,0.000105,2]
[339588309,1727718639846,-804.51239305,0.000105,2]
[339588310,1727718640056,-637.23,0.000105,2]
[339588311,1727718640070,-15560.25203291,0.000105,2]
[339588313,1727718640079,-300.0,0.00010501,2]
[339588315,1727718640090,-16945.93,0.00010502,2]
[339588317,1727718640099,-250.0,0.00010556,2]
[339588319,1727718640108,-47980.75133876,0.000106,2]
[339588321,1727718640117,-150.0,0.00010799,2]
[339588323,1727718640126,-11512.0,0.000109,3]
[339588325,1727718640135,-552.54392766,0.000109,2]
[339588327,1727718640144,-1000.0,0.00010927,2]
[339588329,1727718640153,-250.0,0.00010929,2]
[339588331,1727718640162,-173.37,0.00010929,2]
[339588333,1727718640172,-150.0,0.00010932,2]
[339588334,1727718640181,-200.95,0.00010939,2]
[339588336,1727718640190,-167.29,0.00010953,2]
[339588338,1727718640199,-3977.25,0.00010953,2]
[339588340,1727718640208,-320.89,0.00010953,2]
[339588342,1727718640217,-157.06,0.00010959,2]
[339588344,1727718640226,-165.27,0.00010959,2]
[339588346,1727718640235,-500.0,0.00010959,2]
[339588348,1727718640244,-1500.0,0.00010959,2]
[339588350,1727718640253,-3800.96,0.00010974,2]
[339588352,1727718640262,-225180.42543302,0.00011,2]
[339588354,1727718640271,-1050.0,0.00011,2]
[339588356,1727718640280,-552.54392766,0.00011111,2]
[339588358,1727718640288,-150.0,0.00011145,2]
[339588360,1727718640297,-284.14672273,0.00011145,2]
[339588361,1727718640307,-246.58357932,0.00011145,2]
[339588363,1727718640316,-171.57410942,0.00011145,2]
[339588365,1727718640326,-168.44385972,0.00011145,2]
[339588367,1727718640335,-195.08676681,0.00011145,2]
[339588369,1727718640344,-150.20135592,0.00011145,2]
[339588371,1727718640353,-256.17612795,0.00011145,2]
[339588373,1727718640362,-152.2575597,0.00011145,2]
[339588374,1727718640371,-150.6633139,0.00011145,2]
[339588375,1727718640380,-244.42361065,0.00011145,2]
[339588379,1727718640567,-153.5566632,0.00011145,2]
[339588380,1727718640580,-11512.0,0.000113,5]
[339588381,1727718640590,-499.99,0.00011322,2]
[339588382,1727718640600,-552.54392766,0.00011322,2]
[339588383,1727718640610,-150.0,0.000114,2]
[339588384,1727718640621,-428.57,0.000114,2]
[339588385,1727718640630,-204.86,0.00011437,2]
[339588386,1727718640639,-213.39,0.00011464,2]
[339588387,1727718640649,-174.48,0.00011528,2]
[339588388,1727718640658,-420.0,0.00011546,2]
[339588389,1727718640667,-204.86,0.00011735,2]
[339588390,1727718640677,-159.89353842,0.00011829,2]
[339588391,1727718640686,-500.0,0.000119,2]
[339588392,1727718640695,-500.0,0.000119,2]
[339588393,1727718640704,-500.0,0.000119,2]
[339588394,1727718640713,-500.0,0.000119,2]
[339588395,1727718640722,-500.0,0.000119,2]
[339588396,1727718640731,-500.0,0.000119,2]
[339588397,1727718640740,-525.88,0.000119,2]
[339588398,1727718640750,-500.0,0.000119,2]
[339588399,1727718640759,-500.0,0.000119,2]
[339588400,1727718640768,-500.0,0.000119,2]
[339588401,1727718640778,-500.0,0.000119,2]
[339588402,1727718640787,-500.0,0.000119,2]
[339588403,1727718640796,-500.0,0.000119,2]
[339588404,1727718640805,-500.0,0.000119,2]
[339588405,1727718640815,-500.0,0.000119,2]
[339588406,1727718640824,-500.0,0.000119,2]
[339588407,1727718640834,-500.0,0.000119,2]
[339588408,1727718640844,-500.0,0.000119,2]
[339588409,1727718640856,-500.0,0.000119,2]
[339588410,1727718640865,-500.0,0.000119,2]
[339588411,1727718640876,-500.0,0.000119,2]
[339588412,1727718640885,-500.0,0.000119,2]
[339588413,1727718640895,-500.0,0.000119,2]
[339588414,1727718640904,-500.0,0.000119,2]
[339588415,1727718640913,-500.0,0.000119,2]
[339588416,1727718640924,-500.0,0.000119,2]
[339588417,1727718640933,-500.0,0.000119,2]
[339588418,1727718640943,-500.0,0.000119,2]
[339588419,1727718640954,-500.0,0.000119,2]
[339588420,1727718640963,-552.0,0.000119,2]
[339588421,1727718640972,-500.0,0.000119,2]
[339588422,1727718640981,-500.0,0.000119,2]
[339588423,1727718640991,-500.0,0.000119,2]
[339588424,1727718641001,-500.0,0.000119,2]
[339588425,1727718641013,-500.0,0.000119,2]
[339588426,1727718641022,-500.0,0.000119,2]
[339588427,1727718641032,-500.0,0.000119,2]
[339588428,1727718641041,-500.0,0.000119,2]
[339588429,1727718641050,-500.0,0.000119,2]
[339588430,1727718641061,-500.0,0.000119,2]
[339588431,1727718641071,-500.0,0.000119,2]
[339588432,1727718641080,-500.0,0.000119,2]
[339588433,1727718641090,-500.0,0.000119,2]
[339588434,1727718641099,-500.0,0.000119,2]
[339588435,1727718641108,-500.0,0.000119,2]
[339588436,1727718641117,-500.0,0.000119,2]
[339588437,1727718641126,-500.0,0.000119,2]
[339588438,1727718641136,-500.0,0.000119,2]
[339588439,1727718641145,-500.0,0.000119,2]
[339588440,1727718641154,-500.0,0.000119,2]
[339588441,1727718641163,-500.0,0.000119,2]
[339588442,1727718641172,-500.0,0.000119,2]
[339588443,1727718641181,-395.6,0.000119,2]
[339588444,1727718641191,-500.0,0.000119,2]
[339588445,1727718641200,-500.0,0.000119,2]
[339588446,1727718641210,-500.0,0.000119,2]
[339588447,1727718641220,-500.0,0.000119,2]
[339588448,1727718641229,-500.0,0.000119,2]
[339588449,1727718641238,-500.0,0.000119,2]
[339588450,1727718641247,-500.0,0.000119,2]
[339588451,1727718641256,-500.0,0.000119,2]
[339588452,1727718641265,-524.82,0.000119,2]
[339588453,1727718641275,-500.0,0.000119,2]
[339588454,1727718641284,-500.0,0.000119,2]
[339588455,1727718641294,-500.0,0.000119,2]
[339588456,1727718641303,-500.0,0.000119,2]
[339588457,1727718641315,-500.0,0.000119,2]
[339588458,1727718641324,-500.0,0.000119,2]
[339588459,1727718641333,-500.0,0.000119,2]
[339588460,1727718641342,-500.0,0.000119,2]
[339588461,1727718641352,-500.0,0.000119,2]
[339588462,1727718641361,-500.0,0.000119,2]
[339588463,1727718641370,-500.0,0.000119,2]
[339588464,1727718641380,-545.35,0.000119,2]
[339588465,1727718641389,-159.89353842,0.00011932,2]
[339588466,1727718641399,-159.89353842,0.00012035,2]
[339588467,1727718641408,-455.365801,0.00012058,2]
[339588468,1727718641417,-626.28708165,0.00012119,2]
[339588469,1727718641427,-626.28708165,0.00012119,2]
[339588470,1727718641436,-159.89353842,0.00012139,2]
[339588471,1727718641445,-455.365801,0.00012209,2]
[339588472,1727718641455,-3466.61253385,0.0001222,2]
[339588473,1727718641464,-159.89353842,0.00012242,2]
[339588474,1727718641473,-1000.0,0.00012293,2]
[339588475,1727718641483,-7500.0,0.000123,2]
[339588476,1727718641492,-2630.77625415,0.00012327,7]
[339588477,1727718641501,-1186.42922239,0.00012327,2]
[339588478,1727718641510,-168.44791415,0.00012327,2]
[339588479,1727718641520,-159.89353842,0.00012345,2]
[339588480,1727718641529,-455.365801,0.0001236,2]
[339588481,1727718641538,-500.0,0.00012373,2]
[339588482,1727718641547,-500.0,0.00012373,2]
[339588483,1727718641557,-150.0,0.00012384,2]
[339588484,1727718641566,-171.48637453,0.00012389,2]
[339588485,1727718641577,-151.47,0.00012389,2]
[339588486,1727718641586,-212.98058182,0.00012399,2]
[339588487,1727718641595,-500.0,0.00012399,2]
[339588488,1727718641604,-204216.27511012,0.000124,2]
[339588495,1727718642973,-500.0,0.000119,2]
[339588496,1727718642983,-215.58487265,0.000119,2]
[339588500,1727718643049,-80.52512735,0.000119,2]
[339588501,1727718643063,-5549.15892788,0.000124,2]
[339588502,1727718643079,-79404.55406263,0.000124,2]
[339588503,1727718643087,-40574.26171159,0.000124,2]
[339588504,1727718643099,-85699.57582601,0.000124,2]
[339588505,1727718643127,-729.9999998,0.000124,2]
[339588506,1727718643139,-3282.0027101,0.000124,2]
[339588516,1727718645889,-552.54392766,0.00011533,2]
[339588517,1727718645899,-536.43317823,0.000124,2]
[339588518,1727718645911,-13193.85826428,0.000124,2]
[339588683,1727718948620,163.31,9.513e-05,2]
[339588972,1727719512379,200.0,9.465e-05,2]
[339589068,1727719735812,167.25,8.955e-05,2]
[339589128,1727719832056,-200.95,0.00010861,2]
[339589130,1727719832066,-855.31777534,0.00011,2]
[339589134,1727719832095,-194.68222466,0.00011,2]
[339589135,1727719832105,-123.76777534,0.00011145,2]
[339589145,1727719832221,-26.23222466,0.00011145,2]
[339589146,1727719832230,-150.0,0.00011145,2]
[339589147,1727719832240,-150.0,0.00011145,2]
[339589148,1727719832249,-150.00000001,0.00011145,2]
[339589149,1727719832259,-150.0,0.00011145,2]
[339589150,1727719832268,-150.0,0.00011145,2]
[339589151,1727719832278,-150.0,0.00011218,2]
[339589152,1727719832287,-167.25,0.00011219,2]
[339589153,1727719832297,-76.52171727,0.00011228,2]
[339589154,1727719832308,-73.47828273,0.00011228,2]
[339589155,1727719832318,-150.0,0.00011291,2]
[339589156,1727719832327,-150.0,0.000113,2]
[339589157,1727719832336,-150.0,0.0001131,2]
[339589158,1727719832346,-250.0,0.0001134,2]
[339589159,1727719832355,-420.32752177,0.0001134,2]
[339589160,1727719832367,-1079.67247823,0.0001134,2]
[339589161,1727719832376,-150.0,0.00011364,2]
[339589162,1727719832386,-353.02864269,0.00011364,2]
[339589163,1727719832406,-146.96135731,0.00011364,2]
[339589164,1727719832415,-174.48,0.00011368,2]
[339589165,1727719832424,-250.0,0.00011386,2]
[339589166,1727719832433,-1000.0,0.00011386,2]